Cogmind - Beta 13 X2 @@@ ROGUE MODE // 2024.01.22 @ 18:40:06 Player: Minty Result: Destroyed by as-08848 with Assembled Rifle Performance ------------- Evolutions (0) 0 Regions Visited (4) 800 Robots Destroyed (30) 150 Value Destroyed (491) 491 Prototype IDs (26) 520 Alien Tech Used (0) 0 Bonus (401) 401 TOTAL SCORE: 2362 Bonus ------- Follower Combat Kills 101 Aligned with FarCom 300 Cogmind --------- Core Integrity 0/250 Matter 289/300 Energy 66/100 System Corruption 0% Temperature Cool (0) Movement Core (50) Location -9/Mines Parts ------- > --- POWER (1) -------- (None) > --- PROPULSION (2) --- (None) > --- UTILITY (2) ------ Improved Targeting Computer > --- WEAPON (2) ------- Improved EM Shotgun > --- INVENTORY (5) ---- Flying Fortress v7 Utility Shielding Peak State ------------ > --- POWER ------------ Ion Engine > --- PROPULSION ------- Flight Unit Flight Unit > --- UTILITY ---------- Small Storage Unit Improved Targeting Computer > --- WEAPON ----------- Heavy EM Pulse Gun Improved EM Shotgun > --- INVENTORY -------- Flying Fortress v7 Improved Targeting Computer Utility Shielding Improved EM Shotgun Improved EM Shotgun [Rating: 15] Favorites ----------- Power Ion Engine Engine Ion Engine Propulsion Aluminum Leg Leg Aluminum Leg Flight Unit Flight Unit Utility Small Storage Unit Storage Small Storage Unit Processor Improved Targeting Computer Weapon Improved EM Shotgun Energy Gun Improved EM Shotgun Ballistic Gun Assault Rifle Launcher Rocket Launcher Build | -11 -10 -10 -10 -9 ------- Run | Yrd Mat Min Exi Min Slots Evolved . | . . . . . Power . | . . . . . Propulsion . | . . . . . Utility . | . . . . . Weapon . | . . . . . Parts Attached 15 | . 3 3 2 7 Power . | . . . . . Engine . | . . . . . Core . | . . . . . Reactor . | . . . . . Propulsion 4 | . . 2 . 2 Treads . | . . . . . Leg 2 | . . 2 . . Wheel . | . . . . . Hover . | . . . . . Flight 2 | . . . . 2 Utility 1 | . 1 . . . Device . | . . . . . Storage . | . . . . . Processor 1 | . 1 . . . Hackware . | . . . . . Protection . | . . . . . Artifact . | . . . . . Weapon 10 | . 2 1 2 5 Energy Gun 5 | . 1 . 1 3 Energy Cannon . | . . . . . Ballistic Gun 4 | . 1 1 1 1 Ballistic Cannon . | . . . . . Launcher 1 | . . . . 1 Special Weapon . | . . . . . Impact Weapon . | . . . . . Slashing Weapon . | . . . . . Piercing Weapon . | . . . . . Special Melee Weapon . | . . . . . Unidentified Prototypes 1 | . 1 . . . Parts Lost 4 | . . . . 4 Power . | . . . . . Propulsion 2 | . . . . 2 Utility . | . . . . . Weapon 2 | . . . . 2 Highest Loss Streak 4 | . . . . 4 To Critical Strikes . | . . . . . Average Slot Usage (%) 98 | . 98 100 100 95 Engine 13 | . 14 14 14 13 Leg 23 | . 28 28 28 8 Flight 3 | . . . . 18 Storage 13 | . 14 14 14 13 Processor 13 | . 12 14 14 14 Energy Gun 14 | . 12 14 14 16 Ballistic Gun 13 | . 15 14 14 10 Naked Turns . | . . . . . Heaviest Build 16 | 13 15 15 15 16 Greatest Support 20 | 20 20 20 20 20 Greatest Overweight (x) 3 | . . . . 3 Average Overweight (x) . | . . . . . Largest Inventory Capacity 8 | . 8 8 8 8 Average Capacity 7 | . 8 8 8 7 Most Carried 8 | . 8 8 8 8 Average Carried 7 | . 7 8 7 7 Final Capacity 8 | 8 8 8 8 5 Final Carried 8 | 6 8 8 8 5 Class Distribution -------------------- 100% | Mutant Dominant Class ---------------- Mutant | -10/Materials Mutant | -10/Mines Mutant | -10/Exiles Mutant | -9/Mines Resources | -11 -10 -10 -10 -9 ----------- Run | Yrd Mat Min Exi Min Matter Collected 471 | 172 133 81 . 85 Remotely . | . . . . . Salvage Created 1021 | . 474 416 . 131 Parts 61 | . 30 19 . 12 Haulers Intercepted 1 | . 1 . . . Recyclers Shooed 3 | . 1 1 . 1 Parts Field Recycled . | . . . . . Retrieved Matter . | . . . . . Parts Self-Destructed . | . . . . . Prevented . | . . . . . Kills | -11 -10 -10 -10 -9 ------- Run | Yrd Mat Min Exi Min Combat Hostiles Destroyed 23 | . 12 5 . 6 Guns 20 | . 12 5 . 3 AOE 3 | . . . . 3 Classes Destroyed 9 | . 5 2 . 2 Worker 1 | . . . . 1 Builder 1 | . 1 . . . Tunneler 3 | . . 2 . 1 Hauler 1 | . 1 . . . Recycler 3 | . . 3 . . Watcher 1 | . 1 . . . Swarmer 12 | . 6 3 . 3 Grunt 8 | . 6 2 . . Assembled 3 | . . . . 3 Best Kill Streak 8 | . 8 4 . 4 Combat Bots Only 7 | . 7 3 . 3 Max Kills in Single Turn 3 | . 1 2 . 3 Gunslinging . | . . . . . Exploded 3 | . . . . 3 Melee . | . . . . . Uniques/NPCs Destroyed . | . . . . . Combat | -11 -10 -10 -10 -9 -------- Run | Yrd Mat Min Exi Min Hostile Shots Fired 92 | . 32 18 2 40 Missed 25 | . 8 8 . 9 Damage Taken 818 | . 258 98 33 429 Core 255 | . 63 10 . 182 Absorbed by Shields . | . . . . . Core Remaining (%) 100 | 100 . . . . Volleys Fired 51 | . 25 17 . 9 Largest 2 | . 2 2 . 2 Hottest 90 | . 65 65 . 90 Shots Fired 98 | . 48 33 . 17 Gun 97 | . 48 33 . 16 Cannon . | . . . . . Launcher 1 | . . . . 1 Special . | . . . . . Kinetic 47 | . 25 17 . 5 Thermal . | . . . . . Explosive 1 | . . . . 1 Electromagnetic 50 | . 23 16 . 11 Robot Hit Streak 10 | . 8 10 . 8 Robot Miss Streak 5 | . 5 4 . 5 Penetration Max . | . . . . . Secondary Targets 4 | . 2 2 . . Max Gunslinging Chain 1 | . 1 1 . . Shots Hit Robots 66 | . 30 25 . 11 Core Hits 52 | . 24 16 . 12 Critical Kills . | . . . . . Critical Parts Destroyed . | . . . . . Critical Strikes . | . . . . . Melee Attacks . | . . . . . Impact . | . . . . . Slashing . | . . . . . Piercing . | . . . . . Sneak Attacks . | . . . . . Combat Hostiles . | . . . . . Follow-up Attacks . | . . . . . Damage Inflicted 1248 | . 520 373 . 355 Guns 981 | . 462 369 . 150 Cannons . | . . . . . Explosions 247 | . 42 . . 205 Melee . | . . . . . Ramming 20 | . 16 4 . . Kinetic 309 | . 137 145 . 27 Thermal 42 | . 42 . . . Explosive 205 | . . . . 205 Electromagnetic 672 | . 325 224 . 123 Impact . | . . . . . Slashing . | . . . . . Piercing . | . . . . . Highest Corruption . | . . . . . Average Corruption . | . . . . . Corruption Purged . | . . . . . Corruption Blocked . | . . . . . Overload Shots . | . . . . . Overflow Damage . | . . . . . Projectiles . | . . . . . Explosions . | . . . . . Melee . | . . . . . Knockbacks . | . . . . . Impact . | . . . . . Kinetic . | . . . . . Secondary . | . . . . . Self-Inflicted Damage 23 | . . . . 23 Shots 1 | . . . . 1 Rammed . | . . . . . Targets Rammed 3 | . 2 1 . . Kicked 3 | . 2 1 . . Crushed . | . . . . . Highest Temperature 51 | . 48 51 . 36 Average Temperature 11 | . 11 13 . 10 Received Heat Transfer 120 | . 87 33 . . Siege Activations . | . . . . . Robots Corrupted . | . . . . . Combat Hostiles . | . . . . . Parts Fried 1 | . . 1 . . Impact Corruptions . | . . . . . Robots Melted . | . . . . . Combat Hostiles . | . . . . . Parts Melted . | . . . . . Heat Transferred 50 | . 50 . . . Parts Sabotaged . | . . . . . Parts Stolen . | . . . . . Parts Stripped . | . . . . . Power Chain Reactions 1 | . 1 . . . Missiles Intercepted . | . . . . . Alert | -11 -10 -10 -10 -9 ------- Run | Yrd Mat Min Exi Min Peak Influence 400 | . 400 322 . 90 Initial 156 | . . 156 . . Average 163 | . 179 224 . 53 Maximum Alert Level 2 | . 2 1 . . Low Security (%) 66 | . 59 49 . 100 Level 1 31 | . 34 50 . . Level 2 1 | . 6 . . . Level 3 . | . . . . . Level 4 . | . . . . . Level 5 . | . . . . . High Security . | . . . . . Max Security . | . . . . . Squads Dispatched 2 | . 2 . . . Investigation 2 | . 2 . . . Extermination . | . . . . . Reinforcement . | . . . . . Assault . | . . . . . Garrison . | . . . . . Intercept . | . . . . . Searches Triggered . | . . . . . Construction Impeded . | . . . . . Haulers Reinforced . | . . . . . Active Scanning Responses . | . . . . . Cargo Convoy Interrupts . | . . . . . Stealth | -11 -10 -10 -10 -9 --------- Run | Yrd Mat Min Exi Min Distress Signals 2 | . 2 . . . Communications Jammed . | . . . . . Distress Signals . | . . . . . Times Spotted 39 | . 13 5 1 20 Peak Tracking Total 19 | . 4 2 3 19 Tactical Retreats . | . . . . . Traps | -11 -10 -10 -10 -9 ------- Run | Yrd Mat Min Exi Min Traps Triggered 2 | . 2 . . . Indirectly . | . . . . . Trap Hack Attempts . | . . . . . Triggered . | . . . . . Disarmed 6 | . 6 . . . Reprogrammed . | . . . . . Reused . | . . . . . Traps Extracted . | . . . . . Installed . | . . . . . Triggered . | . . . . . Machines | -11 -10 -10 -10 -9 ---------- Run | Yrd Mat Min Exi Min Machines Disabled 2 | . 1 . 1 . Max in Single Turn 1 | . 1 . . . Machines Repaired . | . . . . . Machines Dismantled . | . . . . . Machines Sabotaged . | . . . . . Overloaded Fab Kills . | . . . . . Hacking | -11 -10 -10 -10 -9 --------- Run | Yrd Mat Min Exi Min Machines Accessed 5 | . 3 1 1 . Terminals 3 | . 2 1 . . Fabricators . | . . . . . Repair Stations . | . . . . . Recycling Units 1 | . 1 . . . Scanalyzers . | . . . . . Garrison Access . | . . . . . Total Hacks 15 | . 10 4 1 . Successful 8 | . 6 1 1 . Failed 7 | . 4 3 . . Catastrophic 2 | . 1 1 . . Database Lockouts . | . . . . . Manual 10 | . 4 5 1 . Terminals 12 | . 8 4 . . Fabricators . | . . . . . Repair Stations . | . . . . . Recycling Units 2 | . 2 . . . Scanalyzers . | . . . . . Garrison Access . | . . . . . Terminal Hacks 5 | . 3 1 1 . Prototype ID Bank 1 | . 1 . . . Branch Access Points 1 | . 1 . . . Disarm Traps 1 | . 1 . . . Zone Layout 1 | . . 1 . . Derelict Proto ID Bank 1 | . . . 1 . Fabricator Hacks . | . . . . . Repair Station Hacks . | . . . . . Recycling Unit Hacks 1 | . 1 . . . Report Inventory 1 | . 1 . . . Scanalyzer . | . . . . . Garrison Access Hacks . | . . . . . Unauthorized Hacks 2 | . 2 . . . Terminals 1 | . 1 . . . Botnet 1 | . 1 . . . Fabricators . | . . . . . Repair Stations . | . . . . . Recycling Units 1 | . 1 . . . Tunnel 1 | . 1 . . . Scanalyzers . | . . . . . Garrison Access . | . . . . . Data Cores Recovered . | . . . . . Used . | . . . . . Hacking Detections 3 | . 2 1 . . Full Trace Events 2 | . 1 1 . . Feedback Events . | . . . . . Feedback Blocked . | . . . . . Robot Schematics Acquired . | . . . . . Robots Built . | . . . . . Authchips . | . . . . . Time . | . . . . . Total Robot Build Rating . | . . . . . Part Schematics Acquired . | . . . . . Parts Built . | . . . . . Authchips . | . . . . . Time . | . . . . . Total Part Build Rating . | . . . . . Parts Repaired . | . . . . . Time . | . . . . . Parts Recycled . | . . . . . Recycled Matter . | . . . . . Retrieved Matter . | . . . . . Retrieved Components . | . . . . . Parts Scanalyzed . | . . . . . Part Schematics Acquired . | . . . . . Parts Damaged . | . . . . . Bothacking | -11 -10 -10 -10 -9 ------------ Run | Yrd Mat Min Exi Min Used RIF Installer . | . . . . . Robots Hacked . | . . . . . Non-combat . | . . . . . Combat . | . . . . . Robot Hacks Applied . | . . . . . Relay Couplers Released . | . . . . . Fabnet Peak Effective % . | . . . . . Robots Rewired . | . . . . . Allies Hacked . | . . . . . Hacks Repelled . | . . . . . Allies | -11 -10 -10 -10 -9 -------- Run | Yrd Mat Min Exi Min Total Allies 3 | . . 3 . . Largest Group 3 | . . 3 3 . Highest-Rated Group 40 | . . 40 40 . Highest-Rated Ally 16 | . . 16 16 . Total Orders . | . . . . . Ally Attacks 14 | . . . 14 . Total Damage 125 | . . . 125 . Kills 3 | . . . 3 . Allies Corrupted . | . . . . . Allies Melted . | . . . . . Intel | -11 -10 -10 -10 -9 ------- Run | Yrd Mat Min Exi Min Robot Analysis Total . | . . . . . Derelict Logs Recovered 1 | . . . . 1 Drone Launches . | . . . . . Drone Recoveries . | . . . . . Exploration | -11 -10 -10 -10 -9 ------------- Run | Yrd Mat Min Exi Min Turns Passed 1709 | . 308 535 520 346 Spaces Moved 1087 | 1 166 397 293 230 Core 11 | . . . . 11 Treads . | . . . . . Legs 893 | 1 166 397 293 36 Wheels . | . . . . . Hover . | . . . . . Flight 183 | . . . . 183 Fastest Speed 37 | 120 120 120 120 37 Average Speed 118 | 120 120 120 120 114 Slowest Speed 280 | 120 120 120 120 280 Overloaded Moves . | . . . . . Propulsion Burnouts . | . . . . . Robots Hopped . | . . . . . Cave-ins Triggered . | . . . . . Exploration Rate (%) 47 | 1 42 68 61 67 Regions Visited 4 Branch Regions 3 Pre-discovered Areas 1 | . 1 . . . Known Exits Taken 1 | . 1 . . . Unknown Exits Taken 3 | 1 . 1 1 . Scrap Searched 4 | . . 2 . 2 Spaces Dug . | . . . . . Terrain Destroyed 12 | . 2 . . 10 Melee . | . . . . . Projectile . | . . . . . AOE 12 | . 2 . . 10 Terrain Rammed . | . . . . . Walls Destroyed . | . . . . . Machines Disabled . | . . . . . Actions | -11 -10 -10 -10 -9 --------- Run | Yrd Mat Min Exi Min Total 1417 | . 228 425 466 298 Wait 222 | . 19 2 159 42 Move 1083 | . 165 396 292 230 Hop . | . . . . . Pick Up 15 | . 8 2 4 1 Fast Attach 6 | . 1 . . 5 Attach 2 | . . . . 2 Detach . | . . . . . Swap 7 | . 2 3 2 . Drop 28 | . 6 4 9 9 Fire 51 | . 25 17 . 9 Melee . | . . . . . Ram . | . . . . . Kick 3 | . 2 1 . . Crush . | . . . . . Escape Stasis . | . . . . . Rewire . | . . . . . Trap . | . . . . . Miscellaneous . | . . . . . Route ------- -11/Scrapyard -10/Materials -10/Mines (discovered 3 exits: [*Mat x2] / *Exi) -10/Exiles -9/Mines History --------- Turn | Location | Event 1 | -11/Scrapyard | Discovered new exit (range 0) 1 | -11/Scrapyard | Entered Materials 80 | -10/Materials | Identified exit to Mines 247 | -10/Materials | Destroyed 7 combat bots 304 | -10/Materials | Build established: Mutant 309 | -10/Materials | Entered Mines 497 | -10/Mines | Discovered new exit (range 7) 781 | -10/Mines | Discovered new exit (range 10) 813 | -10/Mines | Assisted by bots powering up and referring to "LRC-V3" 839 | -10/Mines | Deemed a non-threat by the Exiles lab entrance 839 | -10/Mines | Discovered new exit (range 5) 844 | -10/Mines | Entered Exiles 844 | -10/Exiles | Accompanied by 3 allies 893 | -10/Exiles | Met 8R-AWN 913 | -10/Exiles | Met EX-HEX 952 | -10/Exiles | Met EX-BIN 967 | -10/Exiles | Aligned with FarCom system 968 | -10/Exiles | Given EX-Vault access code 996 | -10/Exiles | Opened EX-Vault 1014 | -10/Exiles | Found Flying Fortress v7 1053 | -10/Exiles | Exiles lab attacked by MAIN.C 1140 | -10/Exiles | Discovered new exit (range 10) 1364 | -10/Exiles | Left Exiles lab with Flying Fortress v7 1364 | -10/Exiles | Entered Mines 1561 | -9/Mines | Found a damaged Exp. Sensor Array with a note attached 1585 | -9/Mines | Learned Materials security intel 1632 | -9/Mines | Received a Rocket Launcher from a helpful Derelict 1684 | -9/Mines | Assembled infested the area 1698 | -9/Mines | Core integrity fell below 50% 1707 | -9/Mines | Core integrity fell below 20% 1710 | -9/Mines | Destroyed by as-08848 with Assembled Rifle Last Messages --------------- 01648_ Acquired Rocket Launcher. 01684_ ALERT: Infestation in the mines, dispatching Demolisher response squad. 01684_ K-01 Serf destroyed. 01688_ Acquired 10 matter. 01691_ Dropped Ion Engine. 01692_ Dropped Hvy. EM Pulse Gun. 01694_ U-05 Engineer destroyed. 01695_ as-95345 suffers critical hit (Impale). 01695_ as-95345 destroyed. 01696_ as-14872 destroyed. 01696_ as-73766 destroyed. 01696_ as-40930 destroyed. 01698_ 5L-KAT destroyed. 01698_ Rocket Launcher destroyed. 01698_ Flight Unit destroyed. 01698_ Imp. EM Shotgun destroyed. 01698_ Flight Unit destroyed. 01707_ Dropped Sml. Storage Unit. 01708_ K-01 Serf cleans the Plasma Injector. Map ----- +----------------------------------------------------+ | ??????????????????????????? ???????????? | | ??????????????????????????? #???????????? | | ?????????????????????????## #???????????? | | ?????????????????????????# #???????????? | | ?????????????????????????# ?????? ?????? | | ?????????????????????????# ## ??????? ?????? | | ?????????????????????????# ## ???????? ?????? | | ?????????????????????##### % # ????????? ?????? | | ?????????????????????# # #?????????? ?????? | | ????????????????????## %=##% #?????????? ?????? | | ????????????????????# %* [*#?????????? ???### | | ????????????????????## #=##?????????# #?? # | | ????????????????????# #%#??????????# #?? | | ????????????????????# #=#??????????# #?? | | ????????????????????# ## #######????# #?? | | ????????????????????# a ### #????# #??# | | ????????????????????# a ####?####### #????# #??# | | ????????????????????## a#??????????# ###### #### | | ?????????????????????# ##?????????# ## | | ????????????????????##aa!##????????# | | ???????????????????## [ ######??# ##### | | ???????????# #### aa ##?# #???### # | | ??????????? k ### #?????## # | | ??????????? """ ### ?????## # | | ???????????## """ ### ##???## # | | ?????????????# """ # @#### #?####???## | | ??????????????# ## #???# ##????????# | | ??????????????##### ##?# #????###?????????# | | ?????????????????## ???# #????????????????## ! | | ????????????????# ??? #?????????????????## # | | ??########??????# #????####??????????????????## # | | ??# #??????# #???????????????????????????# # | | ??# """ #??????# #???????????????????????????# | | ??# """ #??????# #???????????????????????????# | | ??# """ #??????# #???????????????????????????#### | | ??# #??????# ##?????????????????????????????? | | ??# #?????## ###???????????????????????????? | | ??# #####?# ##??????????????????????????? | | ??# #?# ##???#####?????????????????? | | ??# ### #?# ##### ##????????????????? | | ??########## #?# ##???????????????? | | ???????#[* #?# ## #### ##??????????????? | | ???#####%#####?# #######??# #??????????????? | | ???# ===*#?????# #????????## ##?????????????? | | ???# ### ###???# #?????????#### ##????????????? | | ???# #?#%* ##??# #????????????## ##???????????# | | ???# ### = ##?# #?????????????# #????????#### | | ???# ## = ### #?????????????## #???????## | | ??## ##?????????????### #??????## | | ??# #???????????????# #??????# | +----------------------------------------------------+ Best States ------------- Heat Dissipation 25 Energy Generation 10 Energy Capacity 250 Matter Stores 300 Matter Capacity 300 Sight Range 16 Terrain Scan Density 10 Evasion (%) 55 Targeting Accuracy 6 Item Schematics ----------------- None Robot Schematics ------------------ None Fabricated ------------ Nothing Alien Tech Used ----------------- None Achievements -------------- None Challenges ------------ None Game ------ Seed AluminumDynamicOptics Manual? 0 Play Time 00:10:18 Cumulative 613.8 hours Start 2024.01.22 @ 18:27:49 End 2024.01.22 @ 18:40:06 Sessions 1 Manual Loads 0 Difficulty Rogue Special Mode None Game No. 560 Rogue 287 Adventurer 123 Explorer 150 Win Type - Total 25 Types 19/0/4/1/0/0/0/1/0 Lore% 79 Gallery% 90 Achievement% 75 Wizard Run 0 Options --------- ASCII 0 Keyboard 1 Movement Numpad Keybinds 0 Fullscreen 2 Font 18/X11Bold Map View 76x50 Zoom Use 0% Tactical HUD 1 Map Filters NONE Filters NONE Steam 1 RUN: 53a4a3b5-79da-47f5-b10f-f64b061bf658